[Event "Belt and Road Women-ch 2020"]
[Site "Xi'an"]
[Date "2020.12.06"]
[Round "8.3"]
[White "Khademalsharieh, Sarasadat"]
[Black "Hou, Yifan"]
[Result "1/2-1/2"]
[ECO "E21"]
[WhiteElo "2494"]
[BlackElo "2658"]
[Annotator "ChessBase"]
[PlyCount "133"]
[EventDate "2020.12.03"]
[EventCountry "CHN"]
[SourceTitle "playchess.com"]
[Source "ChessBase"]
[SourceQuality "1"]
[TimeControl "900+5"]

1. d4 {[%emt 0:00:01]} Nf6 {[%emt 0:00:02]} 2. c4 {[%emt 0:00:01]} e6 {[%emt 0:00:01]} 3. Nc3 {[%emt 0:00:02]} Bb4 {[%emt 0:00:04]} 4. e3 {[%emt 0:00:01]} O-O {[%emt 0:00:09]} 5. Bd2 {[%emt 0:00:03]} b6 {[%emt 0:00:07]} 6. Nf3 {[%emt 0:00:14]} Bb7 {[%emt 0:00:02]} 7. a3 {[%emt 0:00:01]} Bxc3 {[%emt 0:00:06]} 8. Bxc3 {[%emt 0:00:02]} Ne4 {[%emt 0:00:02]} 9. Rc1 {[%emt 0:00:07]} c5 {[%emt 0:01:09]} 10. Bd3 {[%emt 0:01:15]} d6 {[%emt 0:00:33]} 11. O-O {[%emt 0:00:13]} Nd7 {[%emt 0:01:12]} 12. Qe2 {[%emt 0:00:16]} Nxc3 {[%emt 0:00:48]} 13. Rxc3 {[%emt 0:00:02]} Qf6 {[%emt 0:00:02]} 14. dxc5 {[%emt 0:00:20]} Nxc5 {[%emt 0:00:33]} 15. Bc2 {[%emt 0:00:16]} d5 {[%emt 0:00:22]} 16. Nd2 {[%emt 0:01:16]} Rfd8 {[%emt 0:01:16]} 17. Rc1 {[%emt 0:00:12]} d4 {[%emt 0:01:22]} 18. exd4 {[%emt 0:00:03]} Rxd4 {[%emt 0:00:01]} 19. Nf3 {[%emt 0:03:25]} Rf4 {[%emt 0:02:44]} 20. b4 {[%emt 0:02:32]} g6 {[%emt 0:01:10]} 21. Re3 {[%emt 0:02:13]} Bxf3 {[%emt 0:00:05]} 22. Rxf3 {[%emt 0:00:01]} Rxf3 {[%emt 0:00:01]} 23. Qxf3 {[%emt 0:00:00]} Qxf3 {[%emt 0:00:00]} 24. gxf3 {[%emt 0:00:01]} Nd7 {[%emt 0:00:01]} 25. Ba4 {[%emt 0:00:31]} Ne5 {[%emt 0:00:06]} 26. Rc3 {[%emt 0:00:08]} Rc8 {[%emt 0:00:29]} 27. c5 {[%emt 0:00:06]} bxc5 {[%emt 0:00:03]} 28. f4 {[%emt 0:00:21]} Ng4 {[%emt 0:00:19]} 29. bxc5 {[%emt 0:00:19]} Kf8 {[%emt 0:00:07]} 30. c6 {[%emt 0:00:09]} Ke7 {[%emt 0:01:00]} 31. Rb3 {[%emt 0:00:10]} Rc7 {[%emt 0:00:03]} 32. Kg2 {[%emt 0:00:32]} Nf6 {[%emt 0:00:01]} 33. Kf3 {[%emt 0:00:01]} Nd5 {[%emt 0:00:01]} 34. Rb8 {[%emt 0:00:10]} Nc3 {[%emt 0:00:43]} 35. Rb4 {[%emt 0:00:11]} Kd6 {[%emt 0:01:00]} 36. Kg4 {[%emt 0:00:40]} h6 {[%emt 0:00:38]} 37. h4 {[%emt 0:00:13]} h5+ {[%emt 0:00:01]} 38. Kg5 {[%emt 0:00:03]} Ke7 {[%emt 0:00:07]} 39. Rc4 {[%emt 0:00:13]} Nd5 {[%emt 0:00:04]} 40. Rc5 {[%emt 0:00:23]} Nf6 {[%emt 0:00:47]} 41. Bc2 {[%emt 0:00:31]} Ng4 {[%emt 0:00:31]} 42. f3 {[%emt 0:00:35]} Nf2 {[%emt 0:00:09]} 43. f5 {[%emt 0:00:09]} Nh3+ {[%emt 0:00:02]} 44. Kh6 {[%emt 0:00:02]} exf5 {[%emt 0:00:00]} 45. Ba4 {[%emt 0:00:06]} Nf4 {[%emt 0:00:03]} 46. Re5+ {[%emt 0:00:04]} Ne6 {[%emt 0:00:02]} 47. Rd5 {[%emt 0:00:01]} Rc8 {[%emt 0:00:11]} 48. Kh7 {[%emt 0:00:09]} Kf6 {[%emt 0:00:01]} 49. Ra5 {[%emt 0:00:06]} g5 {[%emt 0:00:13]} 50. Bc2 {[%emt 0:00:09]} Nd4 {[%emt 0:00:20]} 51. Bd3 {[%emt 0:00:09]} gxh4 {[%emt 0:00:02]} 52. Rd5 {[%emt 0:00:01]} Ne6 {[%emt 0:00:14]} 53. Rxf5+ {[%emt 0:00:02]} Ke7 {[%emt 0:00:01]} 54. Be4 {[%emt 0:00:12]} f6 {[%emt 0:00:06]} 55. Rxh5 {[%emt 0:00:05]} h3 {[%emt 0:00:02]} 56. Bf5 {[%emt 0:00:25]} Rxc6 {[%emt 0:00:01]} 57. Bxe6 {[%emt 0:00:02]} Kxe6 {[%emt 0:00:02]} 58. Rxh3 {[%emt 0:00:01]} Rc3 {[%emt 0:00:00]} 59. Kg6 {[%emt 0:00:01]} Rxa3 {[%emt 0:00:02]} 60. Rh7 {[%emt 0:00:04]} a5 {[%emt 0:00:16]} 61. Ra7 {[%emt 0:00:02]} Rxf3 {[%emt 0:00:10]} 62. Ra6+ {[%emt 0:00:05]} Ke5 {[%emt 0:00:05]} 63. Rxa5+ {[%emt 0:00:02]} Ke4 {[%emt 0:00:01]} 64. Ra4+ {[%emt 0:00:04]} Ke5 {[%emt 0:00:03]} 65. Ra5+ {[%emt 0:00:01]} Ke6 {[%emt 0:00:01]} 66. Ra6+ {[%emt 0:00:01]} Ke5 {[%emt 0:00:00]} 67. Ra5+ {[%emt 0:00:01]} 1/2-1/2

[Event "Belt and Road Women-ch 2020"]
[Site "Xi'an"]
[Date "2020.12.06"]
[Round "8.4"]
[White "Muzychuk, Mariya"]
[Black "Zhao, Xue"]
[Result "1-0"]
[ECO "C13"]
[WhiteElo "2544"]
[BlackElo "2486"]
[Annotator "ChessBase"]
[PlyCount "71"]
[EventDate "2020.12.03"]
[EventCountry "CHN"]
[SourceTitle "playchess.com"]
[Source "ChessBase"]
[SourceQuality "1"]
[TimeControl "900+5"]

1. e4 {[%emt 0:00:01]} e6 {[%emt 0:00:02]} 2. d4 {[%emt 0:00:10]} d5 {[%emt 0:00:02]} 3. Nc3 {[%emt 0:00:01]} Nf6 {[%emt 0:00:02]} 4. Bg5 {[%emt 0:00:02]} dxe4 {[%emt 0:00:03]} 5. Nxe4 {[%emt 0:00:02]} Be7 {[%emt 0:00:00]} 6. Bxf6 {[%emt 0:00:03]} gxf6 {[%emt 0:00:00]} 7. Qd2 {[%emt 0:00:04]} a6 {[%emt 0:00:02]} 8. O-O-O {[%emt 0:00:14]} b5 {[%emt 0:00:04]} 9. Qe3 {[%emt 0:01:10]} Bb7 {[%emt 0:01:00]} 10. f4 {[%emt 0:00:29]} Nd7 {[%emt 0:01:41]} 11. Nf3 {[%emt 0:00:43]} Nb6 {[%emt 0:00:23]} 12. f5 {[%emt 0:00:21]} Qd5 {[%emt 0:01:39]} 13. Nc5 {[%emt 0:00:39]} O-O-O {[%emt 0:00:42]} 14. Nxb7 {[%emt 0:03:23]} Kxb7 {[%emt 0:00:04]} 15. Kb1 {[%emt 0:00:12]} Qxf5 {[%emt 0:00:12]} 16. Bd3 {[%emt 0:00:10]} Qg4 {[%emt 0:01:26]} 17. h3 {[%emt 0:01:47]} Qg3 {[%emt 0:00:05]} 18. Be4+ {[%emt 0:00:14]} Nd5 {[%emt 0:00:36]} 19. Qb3 {[%emt 0:00:36]} Ka7 {[%emt 0:03:46]} 20. Rhe1 {[%emt 0:01:09]} Nb6 {[%emt 0:01:10]} 21. Ne5 {[%emt 0:00:50]} Qxb3 {[%emt 0:00:35]} 22. Nc6+ {[%emt 0:00:03]} Kb7 {[%emt 0:00:46]} 23. axb3 {[%emt 0:01:08]} Kc8 {[%emt 0:00:13]} 24. Nxe7+ {[%emt 0:00:29]} Kd7 {[%emt 0:00:02]} 25. Nc6 {[%emt 0:00:02]} Rdg8 {[%emt 0:00:07]} 26. Nb4 {[%emt 0:00:07]} a5 {[%emt 0:00:04]} 27. Nd3 {[%emt 0:00:02]} h5 {[%emt 0:00:14]} 28. Nc5+ {[%emt 0:00:08]} Kc8 {[%emt 0:00:01]} 29. Bb7+ {[%emt 0:00:33]} Kb8 {[%emt 0:00:07]} 30. Bc6 {[%emt 0:00:01]} Rg5 {[%emt 0:00:13]} 31. Re2 {[%emt 0:00:24]} Rd8 {[%emt 0:00:02]} 32. Kc1 {[%emt 0:00:10]} b4 {[%emt 0:00:09]} 33. c3 {[%emt 0:00:31]} h4 {[%emt 0:00:08]} 34. Kc2 {[%emt 0:00:03]} Rd6 {[%emt 0:01:09]} 35. Bf3 {[%emt 0:00:09]} f5 {[%emt 0:00:20]} 36. Ra1 {[%emt 0:00:09]} 1-0

[Event "Belt and Road Women-ch 2020"]
[Site "Xi'an"]
[Date "2020.12.06"]
[Round "8.5"]
[White "Stefanova, Antoaneta"]
[Black "Atalik, Ekaterina"]
[Result "1-0"]
[ECO "D70"]
[WhiteElo "2466"]
[BlackElo "2430"]
[Annotator "ChessBase"]
[PlyCount "95"]
[EventDate "2020.12.03"]
[EventCountry "CHN"]
[SourceTitle "playchess.com"]
[Source "ChessBase"]
[SourceQuality "1"]
[TimeControl "900+5"]

1. d4 {[%emt 0:00:01]} Nf6 {[%emt 0:00:02]} 2. Nf3 {[%emt 0:00:02]} g6 {[%emt 0:00:03]} 3. Nbd2 {[%emt 0:00:02]} d5 {[%emt 0:00:02]} 4. c4 {[%emt 0:00:02]} c6 {[%emt 0:00:04]} 5. e3 {[%emt 0:00:11]} Bg7 {[%emt 0:00:02]} 6. Be2 {[%emt 0:00:06]} O-O {[%emt 0:00:02]} 7. O-O {[%emt 0:00:24]} b6 {[%emt 0:00:11]} 8. b4 {[%emt 0:00:10]} Bb7 {[%emt 0:00:15]} 9. a4 {[%emt 0:00:22]} dxc4 {[%emt 0:00:19]} 10. Nxc4 {[%emt 0:00:20]} Nbd7 {[%emt 0:00:13]} 11. Ba3 {[%emt 0:00:56]} Nd5 {[%emt 0:00:12]} 12. Qb3 {[%emt 0:01:06]} N7f6 {[%emt 0:02:26]} 13. Rac1 {[%emt 0:00:37]} Rc8 {[%emt 0:00:09]} 14. Nfe5 {[%emt 0:00:50]} Ne4 {[%emt 0:00:55]} 15. Rfd1 {[%emt 0:01:03]} f6 {[%emt 0:03:24]} 16. Nd3 {[%emt 0:00:08]} f5 {[%emt 0:00:11]} 17. f3 {[%emt 0:01:17]} Nef6 {[%emt 0:00:14]} 18. Nce5 {[%emt 0:00:57]} Kh8 {[%emt 0:00:12]} 19. Nf2 {[%emt 0:00:46]} Nd7 {[%emt 0:01:15]} 20. f4 {[%emt 0:00:36]} Nxe5 {[%emt 0:00:41]} 21. dxe5 {[%emt 0:00:05]} e6 {[%emt 0:00:10]} 22. g3 {[%emt 0:02:58]} g5 {[%emt 0:00:07]} 23. Bf3 {[%emt 0:02:29]} g4 {[%emt 0:01:14]} 24. Bg2 {[%emt 0:00:03]} Rf7 {[%emt 0:00:19]} 25. e4 {[%emt 0:00:05]} fxe4 {[%emt 0:00:13]} 26. Nxe4 {[%emt 0:00:41]} Rd7 {[%emt 0:00:04]} 27. Nd6 {[%emt 0:00:15]} Rxd6 {[%emt 0:00:45]} 28. exd6 {[%emt 0:00:02]} Qxd6 {[%emt 0:00:00]} 29. Bb2 {[%emt 0:00:05]} Bxb2 {[%emt 0:00:42]} 30. Qxb2+ {[%emt 0:00:02]} Kg8 {[%emt 0:00:01]} 31. Qe5 {[%emt 0:00:14]} Qxe5 {[%emt 0:00:09]} 32. fxe5 {[%emt 0:00:01]} Rf8 {[%emt 0:00:29]} 33. Rd4 {[%emt 0:00:09]} h5 {[%emt 0:00:05]} 34. h3 {[%emt 0:00:01]} gxh3 {[%emt 0:00:15]} 35. Bxh3 {[%emt 0:00:02]} Re8 {[%emt 0:00:27]} 36. Kh2 {[%emt 0:00:08]} Kg7 {[%emt 0:00:31]} 37. g4 {[%emt 0:00:14]} h4 {[%emt 0:00:10]} 38. g5 {[%emt 0:00:01]} Rf8 {[%emt 0:01:16]} 39. Bxe6 {[%emt 0:00:13]} Rf2+ {[%emt 0:00:01]} 40. Kg1 {[%emt 0:00:03]} Rf4 {[%emt 0:00:09]} 41. Rxd5 {[%emt 0:00:20]} cxd5 {[%emt 0:00:02]} 42. Rc7+ {[%emt 0:00:01]} Kg6 {[%emt 0:00:00]} 43. Rxb7 {[%emt 0:00:01]} Rxb4 {[%emt 0:00:03]} 44. Rxa7 {[%emt 0:00:03]} Kxg5 {[%emt 0:00:04]} 45. Bxd5 {[%emt 0:00:02]} Rd4 {[%emt 0:00:01]} 46. Bc6 {[%emt 0:00:03]} h3 {[%emt 0:00:09]} 47. e6 {[%emt 0:00:05]} Kf6 {[%emt 0:00:01]} 48. e7 {[%emt 0:00:03]} 1-0

[Event "Belt and Road Women-ch 2020"]
[Site "Xi'an"]
[Date "2020.12.05"]
[Round "9.1"]
[White "Atalik, Ekaterina"]
[Black "Abdumalik, Zhansaya"]
[Result "1-0"]
[ECO "E61"]
[WhiteElo "2430"]
[BlackElo "2478"]
[Annotator "ChessBase"]
[PlyCount "111"]
[EventDate "2020.12.03"]
[EventCountry "CHN"]
[SourceTitle "playchess.com"]
[Source "ChessBase"]
[SourceQuality "1"]
[TimeControl "900+5"]

1. Nf3 {[%emt 0:00:01]} Nf6 {[%emt 0:00:03]} 2. e3 {[%emt 0:00:02]} g6 {[%emt 0:00:02]} 3. b3 {[%emt 0:00:02]} Bg7 {[%emt 0:00:03]} 4. Bb2 {[%emt 0:00:01]} b6 {[%emt 0:00:02]} 5. d4 {[%emt 0:00:07]} Bb7 {[%emt 0:00:04]} 6. Be2 {[%emt 0:00:02]} O-O {[%emt 0:00:19]} 7. O-O {[%emt 0:00:06]} d6 {[%emt 0:00:54]} 8. c4 {[%emt 0:00:05]} Nbd7 {[%emt 0:00:04]} 9. Nc3 {[%emt 0:00:08]} e6 {[%emt 0:00:07]} 10. Qc2 {[%emt 0:00:53]} Qe7 {[%emt 0:00:11]} 11. Rad1 {[%emt 0:00:08]} a6 {[%emt 0:00:09]} 12. d5 {[%emt 0:01:24]} e5 {[%emt 0:00:56]} 13. Nd2 {[%emt 0:00:09]} Rae8 {[%emt 0:00:18]} 14. Rde1 {[%emt 0:00:03]} h6 {[%emt 0:00:19]} 15. b4 {[%emt 0:00:06]} Nh7 {[%emt 0:00:09]} 16. Nb3 {[%emt 0:00:10]} f5 {[%emt 0:00:27]} 17. e4 {[%emt 0:00:30]} f4 {[%emt 0:00:07]} 18. Bg4 {[%emt 0:00:01]} Ng5 {[%emt 0:00:29]} 19. Bxd7 {[%emt 0:00:13]} Qxd7 {[%emt 0:00:03]} 20. f3 {[%emt 0:00:01]} Nf7 {[%emt 0:00:23]} 21. c5 {[%emt 0:00:06]} Bc8 {[%emt 0:00:28]} 22. cxb6 {[%emt 0:00:15]} cxb6 {[%emt 0:00:02]} 23. Qf2 {[%emt 0:00:11]} b5 {[%emt 0:00:12]} 24. Na5 {[%emt 0:00:05]} g5 {[%emt 0:00:07]} 25. Nc6 {[%emt 0:00:10]} g4 {[%emt 0:00:12]} 26. a4 {[%emt 0:00:37]} gxf3 {[%emt 0:00:39]} 27. gxf3 {[%emt 0:00:02]} Ng5 {[%emt 0:00:10]} 28. Kh1 {[%emt 0:00:02]} Kh7 {[%emt 0:00:39]} 29. axb5 {[%emt 0:00:19]} axb5 {[%emt 0:00:02]} 30. Ra1 {[%emt 0:00:01]} Qf7 {[%emt 0:00:35]} 31. Nxb5 {[%emt 0:00:07]} Qg6 {[%emt 0:00:29]} 32. Nc7 {[%emt 0:01:15]} Bh3 {[%emt 0:01:54]} 33. Nxe8 {[%emt 0:00:44]} Qxe8 {[%emt 0:00:08]} 34. b5 {[%emt 0:00:32]} Bxf1 {[%emt 0:00:51]} 35. Rxf1 {[%emt 0:00:16]} Bf6 {[%emt 0:00:25]} 36. b6 {[%emt 0:00:17]} Rf7 {[%emt 0:00:24]} 37. Ra1 {[%emt 0:00:08]} Qc8 {[%emt 0:00:33]} 38. Ra7 {[%emt 0:00:27]} Kg7 {[%emt 0:00:12]} 39. Ba3 {[%emt 0:00:22]} Rxa7 {[%emt 0:00:43]} 40. bxa7 {[%emt 0:00:03]} Nf7 {[%emt 0:00:43]} 41. Qg1+ {[%emt 0:00:30]} Kh7 {[%emt 0:00:15]} 42. Qf1 {[%emt 0:00:37]} Qb7 {[%emt 0:00:14]} 43. Bb4 {[%emt 0:00:06]} Nd8 {[%emt 0:00:26]} 44. Nxd8 {[%emt 0:00:09]} Bxd8 {[%emt 0:00:02]} 45. Qa1 {[%emt 0:00:16]} Qa8 {[%emt 0:00:11]} 46. Bxd6 {[%emt 0:00:26]} Bb6 {[%emt 0:00:02]} 47. Bxe5 {[%emt 0:00:04]} Qxa7 {[%emt 0:00:11]} 48. Qxa7+ {[%emt 0:00:02]} Bxa7 {[%emt 0:00:00]} 49. Bxf4 {[%emt 0:00:00]} Kg6 {[%emt 0:00:01]} 50. Kg2 {[%emt 0:00:02]} h5 {[%emt 0:00:01]} 51. Bc7 {[%emt 0:00:01]} Kf6 {[%emt 0:00:05]} 52. f4 {[%emt 0:00:02]} Bd4 {[%emt 0:00:01]} 53. Kf3 {[%emt 0:00:01]} Ke7 {[%emt 0:00:04]} 54. e5 {[%emt 0:00:02]} Bc5 {[%emt 0:00:01]} 55. Ke4 {[%emt 0:00:02]} h4 {[%emt 0:00:02]} 56. h3 {[%emt 0:00:01]} 1-0

[Event "Belt and Road Women-ch 2020"]
[Site "Xi'an"]
[Date "2020.12.05"]
[Round "9.2"]
[White "Zhao, Xue"]
[Black "Stefanova, Antoaneta"]
[Result "1/2-1/2"]
[ECO "D10"]
[WhiteElo "2486"]
[BlackElo "2466"]
[Annotator "ChessBase"]
[PlyCount "140"]
[EventDate "2020.12.03"]
[EventCountry "CHN"]
[SourceTitle "playchess.com"]
[Source "ChessBase"]
[SourceQuality "1"]
[TimeControl "900+5"]

1. d4 {[%emt 0:00:03]} d5 {[%emt 0:00:04]} 2. c4 {[%emt 0:00:01]} c6 {[%emt 0:00:01]} 3. cxd5 {[%emt 0:00:02]} cxd5 {[%emt 0:00:02]} 4. Nc3 {[%emt 0:00:00]} Nf6 {[%emt 0:00:08]} 5. Bf4 {[%emt 0:00:02]} a6 {[%emt 0:00:08]} 6. e3 {[%emt 0:00:03]} Nc6 {[%emt 0:00:04]} 7. Bd3 {[%emt 0:00:03]} Bg4 {[%emt 0:00:02]} 8. Nge2 {[%emt 0:00:02]} e6 {[%emt 0:00:08]} 9. Rc1 {[%emt 0:00:02]} Rc8 {[%emt 0:00:18]} 10. O-O {[%emt 0:00:08]} Be7 {[%emt 0:01:41]} 11. Na4 {[%emt 0:00:38]} Nd7 {[%emt 0:00:34]} 12. h3 {[%emt 0:03:57]} Bh5 {[%emt 0:00:13]} 13. Qd2 {[%emt 0:00:50]} O-O {[%emt 0:00:54]} 14. Rc2 {[%emt 0:00:57]} b5 {[%emt 0:01:34]} 15. Rfc1 {[%emt 0:00:07]} Bb4 {[%emt 0:01:07]} 16. Qd1 {[%emt 0:00:26]} Na7 {[%emt 0:00:18]} 17. Rc7 {[%emt 0:00:48]} Rxc7 {[%emt 0:02:39]} 18. Bxc7 {[%emt 0:00:11]} Qe7 {[%emt 0:00:17]} 19. Nb6 {[%emt 0:00:48]} Nf6 {[%emt 0:01:05]} 20. Qc2 {[%emt 0:01:08]} Bg6 {[%emt 0:01:48]} 21. Nf4 {[%emt 0:00:28]} Ne8 {[%emt 0:00:39]} 22. Bxg6 {[%emt 0:01:19]} hxg6 {[%emt 0:00:03]} 23. Nbxd5 {[%emt 0:00:09]} exd5 {[%emt 0:00:06]} 24. Nxd5 {[%emt 0:00:01]} Qe6 {[%emt 0:00:26]} 25. Nxb4 {[%emt 0:00:03]} Nxc7 {[%emt 0:00:02]} 26. Qc5 {[%emt 0:00:17]} Ra8 {[%emt 0:00:28]} 27. d5 {[%emt 0:00:21]} Qf5 {[%emt 0:00:15]} 28. Qe7 {[%emt 0:00:59]} Nxd5 {[%emt 0:00:33]} 29. Qb7 {[%emt 0:00:06]} Rd8 {[%emt 0:00:02]} 30. Rd1 {[%emt 0:00:20]} Rd7 {[%emt 0:00:22]} 31. Qa8+ {[%emt 0:00:06]} Kh7 {[%emt 0:00:01]} 32. Rxd5 {[%emt 0:00:14]} Rxd5 {[%emt 0:00:21]} 33. Nxd5 {[%emt 0:00:01]} Nc8 {[%emt 0:00:31]} 34. Qc6 {[%emt 0:00:48]} Qb1+ {[%emt 0:00:15]} 35. Kh2 {[%emt 0:00:02]} Qxa2 {[%emt 0:00:03]} 36. e4 {[%emt 0:00:57]} Qc4 {[%emt 0:00:04]} 37. Qxc4 {[%emt 0:00:10]} bxc4 {[%emt 0:00:02]} 38. Kg3 {[%emt 0:00:07]} f6 {[%emt 0:00:03]} 39. Kf4 {[%emt 0:00:04]} g5+ {[%emt 0:00:02]} 40. Ke3 {[%emt 0:00:05]} Kg6 {[%emt 0:00:06]} 41. Kd4 {[%emt 0:00:01]} Nd6 {[%emt 0:00:03]} 42. Ne3 {[%emt 0:00:12]} Kh5 {[%emt 0:00:14]} 43. Kd5 {[%emt 0:00:13]} Nf7 {[%emt 0:00:05]} 44. Kxc4 {[%emt 0:00:12]} Ne5+ {[%emt 0:00:05]} 45. Kd4 {[%emt 0:00:08]} Ng6 {[%emt 0:00:15]} 46. b4 {[%emt 0:00:07]} Nf4 {[%emt 0:00:03]} 47. Kc4 {[%emt 0:00:13]} Kg6 {[%emt 0:00:04]} 48. Kd4 {[%emt 0:00:32]} Kf7 {[%emt 0:00:02]} 49. f3 {[%emt 0:00:05]} Ke6 {[%emt 0:00:11]} 50. g4 {[%emt 0:00:13]} Nxh3 {[%emt 0:00:05]} 51. Nd5 {[%emt 0:00:02]} Ng1 {[%emt 0:00:02]} 52. Ke3 {[%emt 0:00:12]} Kd6 {[%emt 0:00:02]} 53. Kf2 {[%emt 0:00:05]} Nh3+ {[%emt 0:00:03]} 54. Kg3 {[%emt 0:00:02]} Ng1 {[%emt 0:00:33]} 55. Kf2 {[%emt 0:00:02]} Nh3+ {[%emt 0:00:02]} 56. Ke3 {[%emt 0:00:03]} Kc6 {[%emt 0:00:05]} 57. Nc3 {[%emt 0:00:13]} Nf4 {[%emt 0:00:04]} 58. Kd4 {[%emt 0:00:03]} Ne6+ {[%emt 0:00:04]} 59. Kc4 {[%emt 0:00:02]} Nc7 {[%emt 0:00:04]} 60. Ne2 {[%emt 0:00:06]} Nb5 {[%emt 0:00:09]} 61. Kd3 {[%emt 0:00:07]} Kd6 {[%emt 0:00:03]} 62. Ng3 {[%emt 0:00:03]} g6 {[%emt 0:00:02]} 63. Ne2 {[%emt 0:00:01]} Ke5 {[%emt 0:00:04]} 64. Kc4 {[%emt 0:00:04]} Kd6 {[%emt 0:00:02]} 65. Nc1 {[%emt 0:00:13]} Na7 {[%emt 0:00:12]} 66. Nd3 {[%emt 0:00:02]} Nc6 {[%emt 0:00:01]} 67. Kc3 {[%emt 0:00:06]} Kc7 {[%emt 0:00:11]} 68. Kc4 {[%emt 0:00:12]} Kd6 {[%emt 0:00:01]} 69. Kc3 {[%emt 0:00:03]} Kc7 {[%emt 0:00:01]} 70. Kc4 {[%emt 0:00:01]} Kd6 {[%emt 0:00:01]} 1/2-1/2

[Event "Belt and Road Women-ch 2020"]
[Site "Xi'an"]
[Date "2020.12.05"]
[Round "9.4"]
[White "Dzagnidze, Nana"]
[Black "Khademalsharieh, Sarasadat"]
[Result "1/2-1/2"]
[ECO "A13"]
[WhiteElo "2524"]
[BlackElo "2494"]
[Annotator "ChessBase"]
[PlyCount "42"]
[EventDate "2020.12.03"]
[EventCountry "CHN"]
[SourceTitle "playchess.com"]
[Source "ChessBase"]
[SourceQuality "1"]
[TimeControl "900+5"]

1. c4 {[%emt 0:00:03]} e6 {[%emt 0:00:03]} 2. Nf3 {[%emt 0:00:05]} d5 {[%emt 0:00:03]} 3. e3 {[%emt 0:00:03]} Nf6 {[%emt 0:00:03]} 4. b3 {[%emt 0:00:04]} c5 {[%emt 0:00:01]} 5. Bb2 {[%emt 0:00:01]} Nc6 {[%emt 0:00:01]} 6. cxd5 {[%emt 0:00:01]} exd5 {[%emt 0:00:01]} 7. Bb5 {[%emt 0:00:03]} Bd6 {[%emt 0:00:02]} 8. O-O {[%emt 0:00:01]} O-O {[%emt 0:00:02]} 9. d4 {[%emt 0:00:05]} cxd4 {[%emt 0:00:01]} 10. Nxd4 {[%emt 0:00:22]} Bc7 {[%emt 0:00:02]} 11. Nf3 {[%emt 0:00:58]} Bg4 {[%emt 0:00:27]} 12. Nbd2 {[%emt 0:01:19]} Ne4 {[%emt 0:01:16]} 13. Bxc6 {[%emt 0:02:50]} Nxd2 {[%emt 0:00:50]} 14. Qxd2 {[%emt 0:00:09]} Bxf3 {[%emt 0:00:01]} 15. gxf3 {[%emt 0:01:06]} Qg5+ {[%emt 0:00:08]} 16. Kh1 {[%emt 0:00:02]} Qh5 {[%emt 0:00:04]} 17. f4 {[%emt 0:00:03]} Qf3+ {[%emt 0:00:01]} 18. Kg1 {[%emt 0:00:01]} Qg4+ {[%emt 0:00:01]} 19. Kh1 {[%emt 0:00:01]} Qf3+ {[%emt 0:00:00]} 20. Kg1 {[%emt 0:00:01]} Qg4+ {[%emt 0:00:01]} 21. Kh1 {[%emt 0:00:01]} Qf3+ {[%emt 0:00:01]} 1/2-1/2